Cogmind - Beta 15 @@@ ROGUE MODE // 2025.10.20 @ 20:26:49 Player: the Result: Destroyed by EL-V02(R) with Subdweller Beam Cannon Performance ------------- Evolutions (0) 0 Regions Visited (2) 400 Robots Destroyed (24) 120 Value Destroyed (474) 474 Prototype IDs (13) 260 Alien Tech Used (0) 0 Bonus (0) 0 TOTAL SCORE: 1254 Bonus ------- None Cogmind --------- Core Integrity 0/250 Matter 300/300 Energy 200/200 System Corruption 0% Temperature Cool (9) Movement Core (1600) Ox31 Location -10/Subcaves Parts ------- > --- POWER (1+1) ------ Subdweller Power Source > --- PROPULSION (2) --- Light Treads > --- UTILITY (2) ------ Huge Storage Unit Subdweller Optics > --- WEAPON (2) ------- Powered Cannon > --- INVENTORY (25) --- Ion Engine Subdweller Power Source Light Nuclear Core Light Treads Subdweller Monowheel Subdweller Monowheel Subdweller Monowheel Subdweller Monowheel Subdweller Monowheel Subdweller Monowheel Subdweller Monowheel Disposable Heat Sink Medium Storage Unit Scrap Shield EM Pulse Gun Subdweller Laser Subdweller Beam Cannon Battle Rifle Peak State ------------ > --- POWER ------------ Subdweller Power Source > --- PROPULSION ------- Light Treads Wheel > --- UTILITY ---------- Huge Storage Unit Subdweller Optics > --- WEAPON ----------- Powered Cannon > --- INVENTORY -------- Ion Engine Subdweller Power Source Light Nuclear Core Light Treads Subdweller Monowheel Subdweller Monowheel Subdweller Monowheel Subdweller Monowheel Subdweller Monowheel Disposable Heat Sink Medium Storage Unit Scrap Shield EM Pulse Gun Subdweller Laser Subdweller Beam Cannon Battle Rifle [Rating: 24] Favorites ----------- Power Subdweller Power Source Engine Subdweller Power Source Propulsion Wheel Treads Light Treads Wheel Wheel Utility Seismic Detector Device Seismic Detector Storage Huge Storage Unit Protection Light Armor Plating Weapon Light Assault Rifle Energy Gun Subdweller Laser Energy Cannon Subdweller Beam Cannon Ballistic Gun Light Assault Rifle Build | -11 -10 -10 ------- Run | Yrd Mat Sub Slots Evolved . | . . . Power . | . . . Propulsion . | . . . Utility . | . . . Weapon . | . . . Parts Attached 27 | 7 8 12 Power 4 | 1 1 2 Engine 4 | 1 1 2 Core . | . . . Reactor . | . . . Propulsion 8 | 2 5 1 Treads 6 | 2 3 1 Leg . | . . . Wheel 2 | . 2 . Hover . | . . . Flight . | . . . Utility 6 | 2 1 3 Device 2 | 1 . 1 Storage 3 | 1 1 1 Processor . | . . . Hackware . | . . . Protection 1 | . . 1 Artifact . | . . . Weapon 9 | 2 1 6 Energy Gun 3 | . 1 2 Energy Cannon 2 | . . 2 Ballistic Gun 4 | 2 . 2 Ballistic Cannon . | . . . Launcher . | . . . Special Weapon . | . . . Impact Weapon . | . . . Slashing Weapon . | . . . Piercing Weapon . | . . . Special Melee Weapon . | . . . Unidentified Prototypes . | . . . Parts Lost 9 | . . 9 Power 1 | . . 1 Propulsion 5 | . . 5 Utility 2 | . . 2 Weapon 1 | . . 1 Highest Loss Streak 5 | . . 5 To Critical Strikes 1 | . . 1 Average Backups 10 | 2 7 12 Power 2 | . 1 2 Propulsion 4 | 1 3 4 Utility 1 | . 1 2 Weapon 2 | . 1 2 Tool/Special . | . . . Unused Backups 13 | . . 13 Power 3 | . . 3 Propulsion 6 | . . 6 Utility 2 | . . 2 Weapon 2 | . . 2 Tool/Special . | . . . Average Slot Usage (%) 96 | . 100 94 Engine 13 | . 14 13 Treads 11 | . 4 14 Wheel 16 | . 23 13 Device 13 | . 14 13 Storage 13 | . 14 13 Energy Gun 5 | . 2 7 Energy Cannon 1 | . . 1 Ballistic Gun 18 | . 25 15 Peak Build Rating 24 | 7 8 24 Average Rating 10 | 5 7 11 On Entrance 5 | . 7 8 Naked Turns . | . . . Heaviest Build 97 | 12 19 97 Greatest Support 40 | 40 40 40 Greatest Overweight (x) 9 | . . 9 Average Overweight (x) 4 | . . 8 Largest Inventory Capacity 25 | 8 10 25 Average Capacity 19 | 7 9 24 Most Carried 19 | 4 10 19 Average Carried 10 | 2 7 13 Final Capacity 25 | 8 10 25 Final Carried 19 | 4 10 19 Class Distribution -------------------- 95% | Mutant 4% | Scavenger-Mutant Dominant Class ---------------- Mutant | -10/Materials Mutant | -10/Subcaves Resources | -11 -10 -10 ----------- Run | Yrd Mat Sub Matter Collected 928 | 294 206 428 Remotely . | . . . Salvage Created 881 | 130 325 426 Parts 62 | 11 27 24 Haulers Intercepted 1 | . 1 . Recyclers Shooed . | . . . Parts Field Recycled . | . . . Retrieved Matter . | . . . Parts Self-Destructed 11 | . . 11 Prevented . | . . . Kills | -11 -10 -10 ------- Run | Yrd Mat Sub Combat Hostiles Destroyed 16 | . 8 8 Guns 15 | . 8 7 Classes Destroyed 8 | 2 5 1 Worker 1 | . 1 . Tunneler 4 | 2 2 . Hauler 1 | . 1 . Recycler 1 | 1 . . Watcher 1 | . 1 . Swarmer 8 | . 6 2 Grunt 2 | . 2 . Subdweller 6 | . . 6 Best Kill Streak 3 | 2 3 3 Combat Bots Only 3 | . 3 3 Max Kills in Single Turn 1 | 1 1 1 Gunslinging . | . . . Exploded . | . . . Melee . | . . . Uniques/NPCs Destroyed . | . . . Combat | -11 -10 -10 -------- Run | Yrd Mat Sub Hostile Shots Fired 133 | . 54 79 Missed 43 | . 17 26 Hits 90 | . 37 53 Projectile 90 | . 37 53 Critical Strikes 2 | . . 2 Damage Taken 1473 | . 351 1122 Core 253 | . 23 230 Absorbed by Shields . | . . . Regen/Repaired (Parts) 53 | . 53 . Core Remaining (%) 100 | 100 . . Volleys Fired 152 | 6 48 98 Largest 2 | 2 2 2 Hottest 120 | 40 40 120 Shots Fired 227 | 12 81 134 Gun 213 | 12 81 120 Cannon 14 | . . 14 Launcher . | . . . Special . | . . . Kinetic 152 | 12 66 74 Thermal 60 | . . 60 Explosive . | . . . Electromagnetic 15 | . 15 . Robot Hit Streak 17 | 5 17 15 Robot Miss Streak 7 | 2 7 2 Penetration Max . | . . . Secondary Targets . | . . . Shots Hit Robots 135 | 7 44 84 Core Hits 51 | 5 21 25 Critical Kills 3 | . . 3 Critical Parts Destroyed 1 | . 1 . Critical Strikes 4 | . 1 3 Meltdown 1 | . . 1 Destroy 3 | . 1 2 Melee Attacks . | . . . Impact . | . . . Slashing . | . . . Piercing . | . . . Sneak Attacks . | . . . Combat Hostiles . | . . . Follow-up Attacks . | . . . Damage Inflicted 1772 | 73 499 1200 Guns 1712 | 73 499 1140 Cannons 60 | . . 60 Explosions . | . . . Melee . | . . . Ramming . | . . . Kinetic 969 | 73 386 510 Thermal 690 | . . 690 Explosive . | . . . Electromagnetic 113 | . 113 . Impact . | . . . Slashing . | . . . Piercing . | . . . Highest Corruption . | . . . Average Corruption . | . . . Corruption Purged . | . . . Corruption Blocked . | . . . Overload Shots . | . . . Overflow Damage . | . . . Projectiles . | . . . Explosions . | . . . Melee . | . . . Knockbacks . | . . . Impact . | . . . Kinetic . | . . . Secondary . | . . . Self-Inflicted Damage . | . . . Shots . | . . . Rammed . | . . . Targets Rammed . | . . . Kicked . | . . . Crushed . | . . . Highest Temperature 21 | . 21 16 Average Temperature 6 | . 8 5 Received Heat Transfer 183 | . 84 99 Siege Activations . | . . . Martial Activations . | . . . Shielding Activations . | . . . Robots Disrupted . | . . . Combat Hostiles . | . . . Robots Corrupted . | . . . Combat Hostiles . | . . . Parts Fried . | . . . Impact Corruptions . | . . . Robots Melted 1 | . . 1 Combat Hostiles 1 | . . 1 Parts Melted . | . . . Heat Transferred 775 | . . 775 Parts Sabotaged . | . . . Parts Stolen . | . . . Parts Stripped . | . . . Power Chain Reactions . | . . . Alert | -11 -10 -10 ------- Run | Yrd Mat Sub Maximum Alert Level . | . . . Low Security (%) 100 | 100 100 . Level 1 . | . . . Level 2 . | . . . Level 3 . | . . . Level 4 . | . . . Level 5 . | . . . High Security . | . . . Max Security . | . . . Peak Influence 114 | 10 114 . Initial . | . . . Average 26 | 1 31 . Influence Increases 323 | 15 268 40 Destroy 0b10 Robot/C 200 | . 160 40 Destroy 0b10 Robot/NC 40 | 15 25 . Destroy Leader 34 | . 34 . Successful Hack 19 | . 19 . Disable Machine 30 | . 30 . Influence Decreases 323 | 15 206 102 Entered New Map 30 | . . 30 Time Decay 283 | 15 206 62 Lost Part 10 | . . 10 Squads Dispatched 1 | . 1 . Investigation . | . . . Extermination . | . . . Reinforcement 1 | . 1 . Assault . | . . . Garrison . | . . . Intercept . | . . . Searches Triggered . | . . . Construction Impeded . | . . . Haulers Reinforced . | . . . Active Scanning Responses . | . . . Cargo Convoy Interrupts . | . . . Stealth | -11 -10 -10 --------- Run | Yrd Mat Sub Distress Signals 1 | . 1 . Communications Jammed . | . . . Distress Signals . | . . . Times Spotted 31 | . 20 11 Peak Tracking Total 5 | . 5 2 Tactical Retreats . | . . . Traps | -11 -10 -10 ------- Run | Yrd Mat Sub Traps Triggered 1 | . . 1 Indirectly . | . . . Trap Hack Attempts . | . . . Triggered . | . . . Disarmed . | . . . Reprogrammed . | . . . Reused 1 | . . 1 Traps Extracted . | . . . Installed 2 | . . 2 Triggered . | . . . Most Traps Carried 1 | . . 1 Machines | -11 -10 -10 ---------- Run | Yrd Mat Sub Machines Disabled 4 | . 2 2 Max in Single Turn 1 | . 1 1 Machines Repaired . | . . . Machines Dismantled . | . . . Machines Sabotaged . | . . . Overloaded Fab Kills . | . . . Hacking | -11 -10 -10 --------- Run | Yrd Mat Sub Machines Accessed 9 | . 7 2 Terminals 6 | . 6 . Fabricators . | . . . Repair Stations 1 | . 1 . Recycling Units . | . . . Scanalyzers . | . . . Garrison Access . | . . . Total Hacks 24 | . 18 6 Successful 17 | . 11 6 Failed 7 | . 7 . Catastrophic . | . . . Database Lockouts . | . . . Manual 9 | . 9 . Terminals 16 | . 16 . Fabricators . | . . . Repair Stations 2 | . 2 . Recycling Units . | . . . Scanalyzers . | . . . Garrison Access . | . . . Terminal Hacks 12 | . 6 6 Record 5 | . . 5 Robot Analysis 1 | . 1 . Prototype ID Bank 1 | . 1 . Branch Access Points 1 | . 1 . Locate Traps 2 | . 2 . Hauler Manifests 1 | . 1 . Proto ID Catalog 1 | . . 1 Fabricator Hacks . | . . . Repair Station Hacks 2 | . 2 . Scan Component 1 | . 1 . Repair 1 | . 1 . Recycling Unit Hacks . | . . . Scanalyzer . | . . . Garrison Access Hacks . | . . . Unauthorized Hacks 3 | . 3 . Terminals 3 | . 3 . Botnet 3 | . 3 . Fabricators . | . . . Repair Stations . | . . . Recycling Units . | . . . Scanalyzers . | . . . Garrison Access . | . . . Data Cores Recovered . | . . . Used . | . . . Hacking Detections 7 | . 7 . Full Trace Events 1 | . 1 . Feedback Events . | . . . Feedback Blocked . | . . . Robot Schematics Acquired . | . . . Robots Built . | . . . Authchips . | . . . Time . | . . . Total Robot Build Rating . | . . . Part Schematics Acquired . | . . . Parts Built . | . . . Authchips . | . . . Time . | . . . Total Part Build Rating . | . . . Parts Repaired 1 | . 1 . Time 26 | . 26 . Parts Recycled . | . . . Recycled Matter . | . . . Retrieved Matter . | . . . Retrieved Components . | . . . Parts Scanalyzed . | . . . Part Schematics Acquired . | . . . Parts Damaged . | . . . Bothacking | -11 -10 -10 ------------ Run | Yrd Mat Sub Used RIF Installer . | . . . Robots Hacked . | . . . Non-combat . | . . . Combat . | . . . Robot Hacks Applied . | . . . Relay Couplers Released . | . . . Fabnet Peak Effective % . | . . . Robots Rewired . | . . . Allies Hacked . | . . . Hacks Repelled . | . . . Allies | -11 -10 -10 -------- Run | Yrd Mat Sub Total Allies . | . . . Largest Group . | . . . Highest-Rated Group . | . . . Highest-Rated Ally . | . . . Total Orders . | . . . Ally Attacks . | . . . Total Damage . | . . . Kills . | . . . Allies Corrupted . | . . . Allies Melted . | . . . Intel | -11 -10 -10 ------- Run | Yrd Mat Sub Active Infowar (turns) 2517 | 46 790 1681 Optics 304 | . . 304 Seismic 2213 | 46 790 1377 Robot Analysis Total 1 | . 1 . Derelict Logs Recovered . | . . . Drone Launches . | . . . Drone Recoveries . | . . . Exploration | -11 -10 -10 ------------- Run | Yrd Mat Sub Turns Passed 2690 | 143 790 1757 Spaces Moved 1416 | 76 635 705 Core 8 | 8 . . Treads 99 | 68 25 6 Legs . | . . . Wheels 1309 | . 610 699 Hover . | . . . Flight . | . . . Fastest Speed 50 | 50 80 80 Average Speed 145 | 148 83 201 Slowest Speed 215 | 160 160 215 Overloaded Moves . | . . . Propulsion Burnouts . | . . . Robots Hopped . | . . . Potential Cave-ins . | . . . Cave-ins Triggered . | . . . Exploration Rate (%) 42 | 5 81 41 Regions Visited 2 Branch Regions 1 Pre-discovered Areas . | . . . Known Exits Taken . | . . . Unknown Exits Taken 2 | 1 1 . Scrap Searched 3 | . . 3 Spaces Dug 1 | . . 1 Terrain Destroyed 2 | . . 2 Melee . | . . . Projectile 2 | . . 2 AOE . | . . . Terrain Rammed . | . . . Walls Destroyed . | . . . Machines Disabled . | . . . Actions | -11 -10 -10 --------- Run | Yrd Mat Sub Total 1819 | 92 814 913 Wait 160 | . 103 57 Move 1414 | 75 634 705 Hop . | . . . Pick Up 32 | 4 8 20 Fast Attach 9 | 7 . 2 Attach 12 | . . 12 Detach 1 | . . 1 Swap 27 | . 18 9 Drop 10 | . 3 7 Fire 152 | 6 48 98 Melee . | . . . Ram . | . . . Kick . | . . . Crush . | . . . Escape Stasis . | . . . Rewire . | . . . Trap 2 | . . 2 Miscellaneous . | . . . Route ------- -11/Scrapyard -10/Materials (discovered 5 exits: [*Mat x2] / *Min x2 / *Sub) -10/Subcaves (discovered 2 exits: [*Mat x2]) History --------- Turn | Location | Event 10 | -11/Scrapyard | Discovered new exit (range 14) 144 | -11/Scrapyard | Entered Materials 219 | -10/Materials | Identified exit to Mines 309 | -10/Materials | Build established: Mutant 309 | -10/Materials | Discovered new exit (range 13) 620 | -10/Materials | Discovered new exit (range 16) 817 | -10/Materials | Repaired Lgt. Armor Plating 930 | -10/Materials | Discovered new exit (range 6) 934 | -10/Materials | Entered Subcaves 935 | -10/Subcaves | Approached by a straggling Scientist 970 | -10/Subcaves | Ambushed by Subdwellers from Twisted Machinery 1042 | -10/Subcaves | Lost 5 parts (1p2n1u1w) 1094 | -10/Subcaves | Discovered new exit (range 11) 1343 | -10/Subcaves | Visited 4L-MR0's lab 1369 | -10/Subcaves | Found Powered Cannon 1451 | -10/Subcaves | A swath of the cavern ceiling suddenly collapsed 1532 | -10/Subcaves | Shifting Twisted Machinery released Sub. Power Source 1747 | -10/Subcaves | Core integrity fell below 50% 2370 | -10/Subcaves | Core integrity fell below 20% 2450 | -10/Subcaves | Visited Clippyterm 2456 | -10/Subcaves | Learned Factory fabricator intel 2456 | -10/Subcaves | Learned Factory trap positions 2559 | -10/Subcaves | Discovered new exit (range 7) 2609 | -10/Subcaves | Attached Powered Cannon, gained temporary slot: Power 2691 | -10/Subcaves | Destroyed by EL-V02(R) with Subdweller Beam Cannon Last Messages --------------- powers down. 02607_ Dropped Battle Rifle. 02609_ Core temporarily expanded with Power slot. 02609_ Dropped Broken Sub. Power Source. 02614_ EQ-OYL(R) affixes Scrap Shield Fragment to Scrap Shield. 02617_ Destroyed Sub. Monowheel. 02617_ EQ-OYL(R) suffers critical hit (Meltdown). 02623_ Acquired 33 matter. 02628_ Acquired Sub. Power Source. 02631_ Acquired Scrap Shield. 02632_ Acquired 60 matter. 02636_ Acquired Sub. Laser. 02637_ Acquired 5 matter. 02641_ Acquired Sub. Monowheel. 02666_ Subatomizers dissect the Battle Rifle. 02674_ EL-V02(R): "WEHOME!" 02691_ Wheel destroyed. Map ----- +----------------------------------------------------+ | ?????????????????????????????????????????????????? | | ?????????????????????????????????????????????????? | | ?????????????????????????????????????????????????? | | ?????????????????????????????????????????????????? | | ?????????????????????????????????????????????????? | | ?????????????????????????????????????????????????? | | ?????????????????????????????????????????????????? | | ?????????????????????????????????????????????????? | | ?????????????????????????????????????????????????? | | ?????????????????????????????????????????????????? | | ???#######???????????????????????????????????????? | | ???#"""""#???????????????????????????????????????? | | ???#""X""#???????????????????????????????????????? | | ???#" "#???????????????????????????????????????? | | ???### ###???????????????????????????????????????? | | ###### #####?????????????????????????????????????? | | # ## "#?????????????????????????????????????? | | # "#?????###???????????????????????#?????? | | # ##??####"#????????????????????? #????? | | #####""""##?????????????????? ???? | | ## ##"""""####??????????????"" ????? | | ### """""[; ####????????? """"#??????? | | #?#"""""""" """""[*;;;;######### ""#??????? | | ##?#" ##"### """ !;; ; # #???????? | | ###??#"#####?# "" % &%! " #????????? | | ?????###?????## ##"#; ; @ R" #????????? | | ??????????????#########;;; ## " ## #????????? | | ??????????????????????####""####"" #???? ?????? | | ????????????????????????#"""#???# #?????? ?? | | ???????????????????????# """#???? ????????? | | ???????????????????????# #???? ?????????? | | ???????????????????????## <""????? #???????? | | ????????????????????????#""" ???? #???????? | | ????????????????????????#""" ???? #???????? | | ????????????????????????### #????? #???????? | | ???????????????????????????# #????? ??????? | | ???????????????????????????? #?????? ?????? | | ???????????????????????????? ??????? ?????? | | ????????????????????????????????????## ??????? | | ?????????????????????????????????????? ?????????? | | ?????????????????????????????????????????????????? | | ?????????????????????????????????????????????????? | | ?????????????????????????????????????????????????? | | ?????????????????????????????????????????????????? | | ?????????????????????????????????????????????????? | | ?????????????????????????????????????????????????? | | ?????????????????????????????????????????????????? | | ?????????????????????????????????????????????????? | | ?????????????????????????????????????????????????? | | ?????????????????????????????????????????????????? | +----------------------------------------------------+ Best States ------------- Heat Dissipation 25 Energy Generation 15 Energy Capacity 250 Matter Stores 300 Matter Capacity 300 Sight Range 21 Terrain Scan Density 10 Armor Coverage 150 Evasion (%) 44 Recoil Reduction 2 Item Schematics ----------------- None Robot Schematics ------------------ None Fabricated ------------ Nothing Repaired ---------- Lgt. Armor Plating | 41% | -10/Materials Alien Tech Used ----------------- None Achievements -------------- None Challenges ------------ None Game ------ Seed MicrowarpMeleeTrap Manual? 0 Play Time 00:18:30 Cumulative 373.9 hours Start 2025.10.20 @ 20:09:06 End 2025.10.20 @ 20:26:49 Sessions 1 Manual Loads 0 Difficulty Rogue Special Mode None Game No. 248 Rogue 248 Adventurer 0 Explorer 0 Win Type - Total 5 Types 3/0/1/0/0/0/0/1/0/0 Lore% 78 Gallery% 79 Achievement% 71 Wizard Run 0 Options --------- Layout 1 ASCII 0 Keyboard 0 Movement Numpad Keybinds 0 Fullscreen 1 Font 24/Smallcaps Map View 50x40 Zoom Use 0% Tactical HUD 1 Map Filters NONE Filters NONE Steam 1 RUN: fbeff937-ded6-458b-854b-b568d2870fe2